fUSD/lending_fUSD_20250620
["ID","MTS","AMOUNT","RATE_DAILY","PERIOD"]
[366726071,1750420245546,-490.0,0.00025467,4]
[366726073,1750420245557,-490.0,0.00025467,4]
[366726075,1750420245567,-490.0,0.00025467,4]
[366726077,1750420245578,-490.0,0.00025467,4]
[366726079,1750420245588,-1320.55,0.00025467,4]
[366726082,1750420245598,-490.0,0.00025467,4]
[366726084,1750420245608,-490.0,0.00025467,4]
[366726086,1750420245619,-255.82167803,0.00025467,4]
[366726091,1750420245658,-500.0,0.00025447,2]
[366726093,1750420245667,-310.93709094,0.00025447,2]
[366726095,1750420245677,-234.17832197,0.00025467,4]
[366726097,1750420245687,-1069.1,0.00025467,4]
[366726099,1750420245698,-490.0,0.00025467,4]
[366726101,1750420245708,-490.0,0.00025467,4]
[366726103,1750420245718,-490.0,0.00025467,4]
[366726105,1750420245728,-490.0,0.00025467,4]
[366726107,1750420245738,-490.0,0.00025467,4]
[366726109,1750420245748,-595.36,0.00025467,4]
[366726111,1750420245759,-490.0,0.00025467,4]
[366726113,1750420245769,-490.0,0.00025467,4]
[366726115,1750420245779,-490.0,0.00025467,4]
[366726118,1750420245789,-490.0,0.00025467,4]
[366726120,1750420245800,-490.0,0.00025467,4]
[366726122,1750420245810,-490.0,0.00025467,4]
[366726124,1750420245820,-490.0,0.00025467,4]
[366726126,1750420245831,-490.0,0.00025467,4]
[366726128,1750420245841,-490.0,0.00025467,4]
[366726130,1750420245851,-490.0,0.00025467,4]
[366726132,1750420245861,-493.17633454,0.00025467,4]
[366726134,1750420245871,-170.02739087,0.00025467,4]
[366726136,1750420245884,-490.0,0.00025467,4]
[366726138,1750420245895,-490.0,0.00025467,4]
[366726141,1750420245906,-490.0,0.00025467,4]
[366726143,1750420245917,-490.0,0.00025467,4]
[366726145,1750420245927,-490.0,0.00025467,4]
[366726147,1750420245937,-490.0,0.00025467,4]
[366726149,1750420245948,-490.0,0.00025467,4]
[366726152,1750420245959,-490.0,0.00025467,4]
[366726155,1750420245969,-490.0,0.00025467,4]
[366726158,1750420245980,-490.0,0.00025467,4]
[366726160,1750420245991,-490.0,0.00025467,4]
[366726162,1750420246002,-490.0,0.00025467,4]
[366726164,1750420246012,-490.0,0.00025467,4]
[366726166,1750420246023,-490.0,0.00025467,4]
[366726168,1750420246035,-703.73,0.00025467,4]
[366726170,1750420246045,-490.0,0.00025467,4]
[366726172,1750420246056,-490.0,0.00025467,4]
[366726174,1750420246066,-490.0,0.00025467,4]
[366726176,1750420246076,-490.0,0.00025467,4]
[366726179,1750420246087,-490.0,0.00025467,4]
[366726181,1750420246098,-748.6,0.00025467,4]
[366726183,1750420246109,-400.20814409,0.00025467,4]
[366726185,1750420246125,-89.79185591,0.00025467,4]
[366726187,1750420246136,-177.11763783,0.00025467,4]
[366726190,1750420246148,-312.88236217,0.00025467,4]
[366726192,1750420246159,-23.99722761,0.00025467,4]
[366726198,1750420246315,-500.0,0.00025447,2]
[366726199,1750420246328,-500.0,0.00025447,2]
[366726200,1750420246339,-76.70404442,0.00025447,2]
[366726201,1750420246352,-423.29595558,0.00025447,2]
[366726203,1750420246363,-500.0,0.00025447,2]
[366726205,1750420246374,-29.22086438,0.00025447,2]
[366726208,1750420246388,-542.05094143,0.00025447,2]
[366726210,1750420246398,-142.5970589,0.00025447,2]
[366726212,1750420246411,-357.4029411,0.00025447,2]
[366726214,1750420246422,-70.1188029,0.00025447,2]
[366726586,1750420271687,200.0,0.00022698,2]
[366726587,1750420301882,205.0,0.00022698,2]
[366726646,1750420866279,265.0,0.000249,10]
[366726649,1750420934358,158.95,0.00013699,2]
[366726657,1750421097412,-373.67102004,0.000259,14]
[366726658,1750421097537,-373.67101978,0.00026348,14]
[366726659,1750421097596,-68011.65796018,0.00026591,10]
[366726663,1750421154554,-7417.93557696,0.00026,14]
[366726665,1750421164037,0.06442304,0.000259,14]
[366726666,1750421172400,206.0,0.00022941,2]
[366726667,1750421217025,-1031.35,0.00024466,2]
[366726668,1750421217048,-1000.0,0.00024519,2]
[366726669,1750421217072,-206.0,0.00024552,4]
[366726670,1750421217094,-250.0,0.00024668,2]
[366726671,1750421217114,-150.0,0.00024668,2]
[366726672,1750421217137,-152.56,0.00025013,2]
[366726673,1750421217163,-193.73330193,0.00025186,2]
[366726674,1750421217185,-2333.33333,0.0002521,2]
[366726675,1750421217208,-721.36715855,0.00025356,2]
[366726676,1750421217229,-156.78837956,0.00025365,2]
[366726677,1750421217250,-167.12,0.00025376,2]
[366726678,1750421217272,-1200.0,0.00025441,2]
[366726679,1750421217296,-300.0,0.00025441,2]
[366726680,1750421217318,-300.0,0.00025441,2]
[366726681,1750421217342,-151.0,0.00025442,2]
[366726682,1750421217364,-156.0,0.00025442,2]
[366726683,1750421217386,-151.0,0.00025442,2]
[366726684,1750421217409,-1379.74782996,0.00025442,2]
[366726685,1750421222294,-300.0,0.00025441,2]
[366726686,1750421222317,-578.10817004,0.00025442,2]
[366726687,1750421222340,-151.0,0.00025442,2]
[366726688,1750421222362,-188.0,0.00025442,2]
[366726689,1750421222387,-500.0,0.00025442,2]
[366726690,1750421222411,-500.0,0.00025442,2]
[366726691,1750421222435,-500.0,0.00025442,2]
[366726692,1750421222473,-500.0,0.00025442,2]
[366726693,1750421222499,-500.0,0.00025442,2]
[366726694,1750421222825,-500.0,0.00025442,2]
[366726695,1750421222852,-500.0,0.00025442,2]
[366726696,1750421222876,-500.0,0.00025442,2]
[366726697,1750421222900,-500.0,0.00025442,2]
[366726698,1750421222925,-500.0,0.00025442,2]
[366726699,1750421222948,-500.0,0.00025442,2]
[366726700,1750421222971,-500.0,0.00025442,2]
[366726701,1750421222996,-500.0,0.00025442,2]
[366726702,1750421223023,-500.0,0.00025442,2]
[366726703,1750421223049,-500.0,0.00025442,2]
[366726704,1750421223074,-500.0,0.00025442,2]
[366726705,1750421223102,-500.0,0.00025442,2]
[366726706,1750421223128,-282.89182996,0.00025442,2]
[366726707,1750421223208,-217.10817004,0.00025442,2]
[366726708,1750421223233,-500.0,0.00025442,2]
[366726709,1750421223259,-500.0,0.00025442,2]
[366726710,1750421223284,-500.0,0.00025442,2]
[366726711,1750421223313,-500.0,0.00025442,2]
[366726712,1750421223338,-218.55656985,0.00025442,2]
[366726713,1750421223368,-500.0,0.00025442,2]
[366726714,1750421223392,-500.0,0.00025442,2]
[366726715,1750421223417,-500.0,0.00025442,2]
[366726716,1750421223442,-500.0,0.00025442,2]
[366726717,1750421223467,-500.0,0.00025442,2]
[366726718,1750421223492,-500.0,0.00025442,2]
[366726719,1750421223517,-500.0,0.00025442,2]
[366726720,1750421223542,-207.4,0.00025442,2]
[366726721,1750421223565,-150.0,0.00025442,2]
[366726722,1750421223591,-3706.93526011,0.00025455,2]
[366726723,1750421223898,-10000.0,0.00025455,2]
[366726724,1750421224969,-7555.4741,0.00025365,2]
[366726725,1750421224994,-2444.5259,0.00025455,2]
[366726726,1750421225387,-162.47352663,0.00025365,2]
[366726727,1750421225412,-3662.06456859,0.00025455,2]
[366726728,1750421225434,-6175.46190478,0.00025455,2]
[366726729,1750421225883,-10000.0,0.00025455,2]
[366726730,1750421226257,-10000.0,0.00025455,2]
[366726731,1750421226876,-151.0,0.00025442,2]
[366726732,1750421226898,-190.70809522,0.00025455,2]
[366726733,1750421226920,-1156.69,0.00025455,2]
[366726734,1750421226942,-490.0,0.00025456,4]
[366726735,1750421226965,-490.0,0.00025456,4]
[366726736,1750421226987,-492.35178912,0.00025456,4]
[366726737,1750421227010,-490.0,0.00025456,4]
[366726738,1750421227034,-490.0,0.00025456,2]
[366726739,1750421227058,-490.0,0.00025456,4]
[366726740,1750421227080,-1080.85,0.00025456,4]
[366726741,1750421227101,-490.0,0.00025456,4]
[366726742,1750421227124,-490.0,0.00025456,4]
[366726743,1750421227146,-490.0,0.00025456,4]
[366726744,1750421227170,-490.0,0.00025456,4]
[366726745,1750421227193,-490.0,0.00025456,4]
[366726746,1750421227218,-490.0,0.00025456,4]
[366726747,1750421227240,-490.0,0.00025456,4]
[366726748,1750421227262,-490.0,0.00025456,4]
[366726749,1750421227284,-490.0,0.00025456,4]
[366726750,1750421227307,-68.40011566,0.00025456,4]
[366726751,1750421227526,-978.11988434,0.00025456,4]
[366726752,1750421227549,-490.0,0.00025456,4]
[366726753,1750421227573,-490.0,0.00025456,4]
[366726754,1750421227596,-500.0,0.00025456,4]
[366726755,1750421227618,-490.0,0.00025456,4]
[366726756,1750421227640,-490.0,0.00025456,4]
[366726757,1750421227663,-490.0,0.00025456,4]
[366726758,1750421227685,-911.65,0.00025456,4]
[366726759,1750421227710,-552.01,0.00025456,4]
[366726760,1750421227731,-490.0,0.00025456,4]
[366726761,1750421227756,-490.0,0.00025456,4]
[366726762,1750421227779,-490.0,0.00025456,4]
[366726763,1750421227802,-490.0,0.00025456,4]
[366726764,1750421227829,-490.0,0.00025456,4]
[366726765,1750421227852,-490.0,0.00025456,4]
[366726766,1750421227875,-490.0,0.00025456,4]
[366726767,1750421227898,-490.0,0.00025456,4]
[366726768,1750421227922,-490.0,0.00025456,4]
[366726769,1750421227949,-198.22011566,0.00025456,4]
[366726770,1750421228435,-291.77988434,0.00025456,4]
[366726771,1750421228460,-490.0,0.00025456,4]
[366726772,1750421228484,-490.0,0.00025456,4]
[366726773,1750421228508,-490.0,0.00025456,4]
[366726774,1750421228531,-490.0,0.00025456,4]
[366726775,1750421228556,-490.0,0.00025456,4]
[366726776,1750421228581,-490.0,0.00025456,4]
[366726777,1750421228606,-490.0,0.00025456,4]
[366726778,1750421228627,-490.0,0.00025456,4]
[366726779,1750421228648,-150.0,0.00025456,4]
[366726780,1750421228670,-490.0,0.00025456,4]
[366726781,1750421228693,-490.0,0.00025456,4]
[366726782,1750421228718,-490.0,0.00025456,4]
[366726783,1750421228741,-490.0,0.00025456,4]
[366726784,1750421228765,-2306.89,0.00025456,4]
[366726785,1750421228787,-490.0,0.00025456,4]
[366726786,1750421228811,-567.26,0.00025456,4]
[366726787,1750421228833,-314.07011566,0.00025456,4]
[366726788,1750421228862,-175.92988434,0.00025456,4]
[366726789,1750421228885,-490.0,0.00025456,4]
[366726790,1750421228910,-490.0,0.00025456,4]
[366726791,1750421228932,-490.0,0.00025456,4]
[366726792,1750421228956,-570.38,0.00025456,4]
[366726793,1750421228980,-490.0,0.00025456,4]
[366726794,1750421229004,-490.0,0.00025456,4]
[366726795,1750421229027,-490.0,0.00025456,4]
[366726796,1750421229050,-500.64,0.00025456,4]
[366726797,1750421229073,-249.69,0.00025456,4]
[366726798,1750421229096,-490.0,0.00025456,4]
[366726799,1750421229120,-490.0,0.00025456,4]
[366726800,1750421229143,-490.0,0.00025456,4]
[366726801,1750421229181,-490.0,0.00025456,4]
[366726802,1750421229204,-490.0,0.00025456,4]
[366726803,1750421229227,-490.0,0.00025456,4]
[366726804,1750421229250,-490.0,0.00025456,4]
[366726805,1750421229273,-490.0,0.00025456,4]
[366726806,1750421229297,-490.0,0.00025456,4]
[366726807,1750421229319,-490.0,0.00025456,4]
[366726808,1750421229344,-490.0,0.00025456,4]
[366726809,1750421229367,-173.36011566,0.00025456,4]
[366726810,1750421229455,-316.63988434,0.00025456,4]
[366726811,1750421229482,-490.0,0.00025456,4]
[366726812,1750421229505,-490.0,0.00025456,4]
[366726813,1750421229530,-490.0,0.00025456,4]
[366726814,1750421229554,-490.0,0.00025456,4]
[366726815,1750421229578,-490.0,0.00025456,4]
[366726816,1750421229605,-490.0,0.00025456,4]
[366726817,1750421229626,-1047.29,0.00025456,4]
[366726818,1750421229650,-490.0,0.00025456,4]
[366726819,1750421229674,-490.0,0.00025456,4]
[366726820,1750421229696,-150.0,0.00025456,4]
[366726821,1750421229718,-150.0,0.00025456,4]
[366726822,1750421229971,-150.0,0.00025456,4]
[366726823,1750421229993,-500.0,0.00025456,4]
[366726824,1750421230014,-150.0,0.00025456,4]
[366726825,1750421230036,-490.0,0.00025456,4]
[366726826,1750421230059,-150.0,0.00025456,4]
[366726827,1750421230087,-490.53,0.00025456,4]
[366726828,1750421230110,-500.0,0.00025456,4]
[366726829,1750421230132,-150.0,0.00025456,4]
[366726830,1750421230154,-150.0,0.00025456,4]
[366726831,1750421230177,-150.0,0.00025456,4]
[366726832,1750421230200,-808.0,0.00025456,4]
[366726833,1750421230222,-500.0,0.00025456,4]
[366726834,1750421230245,-227.54011566,0.00025456,4]
[366726835,1750421230554,-868.48676193,0.00025153,2]
[366726836,1750421230578,-1957.856,0.0002544,2]
[366726837,1750421230604,-500.0,0.00025442,2]
[366726838,1750421230628,-500.0,0.00025442,2]
[366726839,1750421230651,-272.45988434,0.00025456,4]
[366726840,1750421230673,-490.0,0.00025456,4]
[366726841,1750421230696,-490.0,0.00025456,4]
[366726842,1750421230718,-490.0,0.00025456,4]
[366726843,1750421230743,-490.0,0.00025456,4]
[366726844,1750421230766,-490.0,0.00025456,4]
[366726845,1750421230787,-490.0,0.00025456,4]
[366726846,1750421230810,-490.0,0.00025456,4]
[366726847,1750421230833,-490.0,0.00025456,4]
[366726848,1750421230857,-490.0,0.00025456,4]
[366726849,1750421230879,-490.0,0.00025456,4]
[366726850,1750421230901,-490.0,0.00025456,4]
[366726851,1750421230926,-511.19735373,0.00025456,4]
[366726852,1750421230969,-1539.87264627,0.00025456,4]
[366726853,1750421230993,-490.0,0.00025456,4]
[366726854,1750421231018,-490.0,0.00025456,4]
[366726855,1750421231043,-490.0,0.00025456,4]
[366726856,1750421231066,-491.12,0.00025456,4]
[366726857,1750421231088,-614.06,0.00025456,4]
[366726858,1750421231110,-490.0,0.00025456,4]
[366726859,1750421231132,-490.0,0.00025456,4]
[366726860,1750421231155,-727.65,0.00025456,4]
[366726861,1750421231177,-150.0,0.00025456,4]
[366726862,1750421231198,-150.0,0.00025456,4]
[366726863,1750421231219,-500.0,0.00025456,2]
[366726864,1750421231241,-490.0,0.00025456,4]
[366726865,1750421231262,-150.0,0.00025456,4]
[366726866,1750421231283,-150.0,0.00025456,4]
[366726867,1750421231305,-150.0,0.00025456,2]
[366726868,1750421231328,-575.35,0.00025456,4]
[366726869,1750421231351,-490.0,0.00025456,4]
[366726870,1750421231373,-150.0,0.00025456,4]
[366726871,1750421231394,-153.5086134,0.00025456,4]
[366726872,1750421231416,-490.0,0.00025456,4]
[366726873,1750421231439,-150.89217555,0.00025456,4]
[366726874,1750421231462,-427.54656478,0.00025456,4]
[366726875,1750421231494,-62.45343522,0.00025456,4]
[366726876,1750421231518,-150.0,0.00025456,4]
[366726877,1750421231542,-490.0,0.00025456,4]
[366726878,1750421231564,-536.36076678,0.00025456,4]
[366726879,1750421231587,-490.0,0.00025456,4]
[366726880,1750421231612,-500.0,0.00025456,4]
[366726881,1750421231635,-575.47,0.00025456,4]
[366726882,1750421231658,-490.0,0.00025456,4]
[366726883,1750421231682,-490.0,0.00025456,4]
[366726884,1750421231704,-490.0,0.00025456,4]
[366726885,1750421231726,-490.0,0.00025456,4]
[366726886,1750421231749,-500.0,0.00025456,4]
[366726887,1750421231771,-490.0,0.00025456,4]
[366726888,1750421231793,-490.0,0.00025456,4]
[366726889,1750421231814,-490.0,0.00025456,4]
[366726890,1750421231837,-490.0,0.00025456,4]
[366726891,1750421231860,-150.0,0.00025456,4]
[366726892,1750421231882,-490.0,0.00025456,4]
[366726893,1750421231905,-490.0,0.00025456,4]
[366726894,1750421231929,-490.0,0.00025456,4]
[366726895,1750421231953,-490.0,0.00025456,4]
[366726896,1750421231976,-490.0,0.00025456,4]
[366726897,1750421231997,-175.715798,0.00025456,2]
[366726898,1750421232027,-71.084202,0.00025456,2]
[366726899,1750421232050,-9928.915798,0.00025456,2]
[366726900,1750421234486,-500.0,0.00025442,2]
[366726901,1750421234512,-595.56145438,0.00025442,2]
[366726902,1750421234535,-8904.43854562,0.00025456,2]
[366726903,1750421234564,-3181.67424388,0.00025456,2]
[366726904,1750421234585,-433.70781982,0.00025456,2]
[366726905,1750421234610,-500.0,0.00025456,2]
[366726906,1750421234632,-159.92161504,0.00025456,2]
[366726907,1750421234653,-500.0,0.00025456,2]
[366726908,1750421234675,-5224.69632126,0.00025457,2]
[366726909,1750421234714,-10000.0,0.00025457,2]
[366726910,1750421234758,-10000.0,0.00025457,2]
[366726911,1750421234785,-9999.34941874,0.00025457,2]
[366726912,1750421234806,-0.65058126,0.00025457,2]
[366726913,1750421234840,-10000.0,0.00025457,2]
[366726914,1750421235892,-151.0,0.00025442,2]
[366726915,1750421235917,-151.0,0.00025442,2]
[366726916,1750421235940,-9698.0,0.00025457,2]
[366726917,1750421239265,-188.0,0.00025442,2]
[366726918,1750421239287,-490.0,0.00025456,4]
[366726919,1750421239310,-9322.0,0.00025457,2]
[366726920,1750421239340,-10000.0,0.00025457,2]
[366726921,1750421239370,-10000.0,0.00025457,2]
[366726922,1750421239398,-3277.91116594,0.00025457,2]
[366726923,1750421239420,-490.0,0.00025464,4]
[366726924,1750421239442,-490.0,0.00025464,4]
[366726925,1750421239463,-490.0,0.00025464,4]
[366726926,1750421239486,-490.0,0.00025464,4]
[366726927,1750421239508,-490.0,0.00025464,4]
[366726928,1750421239529,-490.0,0.00025464,4]
[366726929,1750421239553,-490.0,0.00025464,4]
[366726930,1750421239574,-490.0,0.00025464,4]
[366726931,1750421239599,-490.0,0.00025464,4]
[366726932,1750421239619,-429.20342788,0.00025464,4]
[366726933,1750421239641,-490.0,0.00025464,4]
[366726934,1750421239663,-490.0,0.00025464,4]
[366726935,1750421239685,-490.0,0.00025464,4]
[366726936,1750421239707,-412.88540618,0.00025464,4]
[366726937,1750421239737,-77.11459382,0.00025464,4]
[366726938,1750421239760,-490.0,0.00025464,4]
[366726939,1750421239782,-490.0,0.00025464,4]
[366726940,1750421239807,-490.0,0.00025464,4]
[366726941,1750421239829,-490.0,0.00025464,4]
[366726942,1750421239851,-490.0,0.00025464,4]
[366726943,1750421239873,-490.0,0.00025464,4]
[366726944,1750421239896,-490.0,0.00025464,4]
[366726945,1750421239921,-490.0,0.00025464,4]
[366726946,1750421239944,-490.0,0.00025464,4]
[366726947,1750421239966,-490.0,0.00025464,4]
[366726948,1750421239989,-430.01,0.00025464,4]
[366726949,1750421240012,-490.0,0.00025464,4]
[366726950,1750421240034,-188.95,0.00025464,4]
[366726951,1750421240056,-490.0,0.00025464,4]
[366726952,1750421240079,-516.14,0.00025464,4]
[366726953,1750421240104,-545.59,0.00025464,4]
[366726954,1750421240128,-490.0,0.00025464,4]
[366726955,1750421240151,-490.0,0.00025464,4]
[366726956,1750421240174,-490.0,0.00025464,4]
[366726957,1750421240197,-490.0,0.00025464,4]
[366726958,1750421240223,-402.19540618,0.00025464,4]
[366726959,1750421240257,-87.80459382,0.00025464,4]
[366726960,1750421240279,-579.76,0.00025464,4]
[366726961,1750421240302,-490.0,0.00025464,4]
[366726962,1750421240325,-490.0,0.00025464,4]
[366726963,1750421240347,-717.05,0.00025464,4]
[366726964,1750421240370,-490.0,0.00025464,4]
[366726965,1750421240393,-1144.2,0.00025464,4]
[366726966,1750421240417,-490.0,0.00025464,4]
[366726967,1750421240441,-746.87,0.00025464,4]
[366726968,1750421240464,-4364.554769,0.00025464,4]
[366726969,1750421240487,-399.76063718,0.00025464,4]
[366726970,1750421240518,-90.23936282,0.00025464,4]
[366726971,1750421240540,-500.0,0.00025464,2]
[366726972,1750421240562,-215.66055578,0.00025464,2]
[366726973,1750421240584,-490.0,0.00025464,4]
[366726974,1750421240611,-490.0,0.00025464,4]
[366726975,1750421240633,-490.0,0.00025464,4]
[366726976,1750421240656,-3073.485081,0.00025464,4]
[366726977,1750421240679,-490.0,0.00025464,4]
[366726978,1750421240702,-490.0,0.00025464,4]
[366726979,1750421240727,-490.0,0.00025464,4]
[366726980,1750421240751,-490.0,0.00025464,4]
[366726981,1750421240775,-490.0,0.00025464,4]
[366726982,1750421240797,-490.0,0.00025464,4]
[366726983,1750421240819,-490.0,0.00025465,4]
[366726984,1750421240841,-490.0,0.00025465,4]
[366726985,1750421240863,-490.0,0.00025465,4]
[366726986,1750421240885,-240.6150004,0.00025465,4]
[366726987,1750421240994,-249.3849996,0.00025465,4]
[366726988,1750421241017,-490.0,0.00025465,4]
[366726989,1750421241040,-490.0,0.00025465,4]
[366726990,1750421241063,-490.0,0.00025465,4]
[366726991,1750421241085,-490.0,0.00025465,4]
[366726992,1750421241107,-490.0,0.00025465,4]
[366726993,1750421241129,-490.0,0.00025465,4]
[366726994,1750421241152,-490.0,0.00025465,4]
[366726995,1750421241176,-490.0,0.00025465,4]
[366726996,1750421241198,-296.34104098,0.00025465,4]
[366726997,1750421241221,-628.93,0.00025465,4]
[366726998,1750421241244,-490.0,0.00025465,4]
[366726999,1750421241267,-500.0,0.00025465,4]
[366727000,1750421241289,-490.0,0.00025465,4]
[366727001,1750421241310,-490.0,0.00025465,4]
[366727002,1750421241333,-1000.0,0.00025465,4]
[366727003,1750421241356,-490.0,0.00025465,4]
[366727004,1750421241377,-490.0,0.00025465,4]
[366727005,1750421241398,-569.44208695,0.00025465,4]
[366727006,1750421241420,-385.90187247,0.00025465,4]
[366727007,1750421241451,-243.27832888,0.00025465,4]
[366727008,1750421241473,-490.0,0.00025465,4]
[366727009,1750421241496,-701.19,0.00025465,4]
[366727010,1750421241518,-490.0,0.00025465,4]
[366727011,1750421241541,-490.0,0.00025465,4]
[366727012,1750421241565,-490.0,0.00025465,4]
[366727013,1750421241587,-490.0,0.00025465,4]
[366727014,1750421241612,-490.0,0.00025465,4]
[366727015,1750421241638,-490.0,0.00025465,4]
[366727016,1750421241660,-490.0,0.00025465,4]
[366727017,1750421241683,-490.0,0.00025465,4]
[366727018,1750421241705,-490.0,0.00025465,4]
[366727019,1750421241727,-490.0,0.00025465,4]
[366727020,1750421241748,-490.0,0.00025465,4]
[366727021,1750421241780,-490.0,0.00025465,4]
[366727022,1750421241806,-490.0,0.00025465,4]
[366727023,1750421241829,-464.42574841,0.00025465,4]
[366727024,1750421241851,-490.0,0.00025465,4]
[366727025,1750421241873,-490.0,0.00025465,4]
[366727026,1750421241896,-490.0,0.00025465,4]
[366727027,1750421241919,-261.10592271,0.00025465,4]
[366727028,1750421241948,-228.89407729,0.00025465,4]
[366727029,1750421241972,-490.0,0.00025465,4]
[366727030,1750421241994,-490.0,0.00025465,4]
[366727031,1750421242018,-490.0,0.00025465,4]
[366727032,1750421242040,-490.0,0.00025465,4]
[366727033,1750421242063,-490.0,0.00025465,4]
[366727034,1750421242087,-490.0,0.00025465,4]
[366727035,1750421242110,-490.0,0.00025465,4]
[366727036,1750421242132,-639.99,0.00025465,4]
[366727037,1750421242155,-577.44,0.00025465,4]
[366727038,1750421242184,-490.0,0.00025465,4]
[366727039,1750421242208,-490.0,0.00025465,4]
[366727040,1750421242232,-490.0,0.00025465,4]
[366727041,1750421242257,-490.0,0.00025465,4]
[366727042,1750421242279,-490.0,0.00025465,4]
[366727043,1750421242308,-490.0,0.00025465,4]
[366727044,1750421242332,-490.0,0.00025465,4]
[366727045,1750421242355,-520.09,0.00025465,4]
[366727046,1750421242379,-674.13,0.00025465,4]
[366727047,1750421242402,-490.0,0.00025465,4]
[366727048,1750421242427,-9.45592271,0.00025465,4]
[366727049,1750421242478,-480.54407729,0.00025465,4]
[366727050,1750421242502,-490.0,0.00025465,4]
[366727051,1750421242526,-580.95,0.00025465,4]
[366727052,1750421242552,-490.0,0.00025465,4]
[366727053,1750421242575,-490.0,0.00025465,4]
[366727054,1750421242601,-490.0,0.00025465,4]
[366727055,1750421242623,-490.0,0.00025465,4]
[366727056,1750421242646,-490.0,0.00025465,4]
[366727057,1750421242670,-490.0,0.00025465,4]
[366727058,1750421242694,-490.0,0.00025465,4]
[366727059,1750421242719,-490.0,0.00025465,4]
[366727060,1750421242743,-887.65,0.00025465,4]
[366727061,1750421242770,-490.0,0.00025465,4]
[366727062,1750421242793,-253.71771129,0.00025465,4]
[366727063,1750421242822,-490.0,0.00025465,2]
[366727064,1750421242846,-490.0,0.00025465,4]
[366727065,1750421243172,-490.0,0.00025465,4]
[366727066,1750421243196,-490.0,0.00025465,4]
[366727067,1750421243217,-490.0,0.00025465,4]
[366727068,1750421243240,-447.13821142,0.00025465,4]
[366727069,1750421243940,-2580.288718,0.00025464,4]
[366727070,1750421243967,-42.86178858,0.00025465,4]
[366727071,1750421243990,-490.0,0.00025465,4]
[366727072,1750421244012,-490.0,0.00025465,4]
[366727074,1750421244037,-490.0,0.00025465,4]
[366727075,1750421244059,-490.0,0.00025465,4]
[366727076,1750421244081,-490.0,0.00025465,4]
[366727077,1750421244104,-490.0,0.00025465,4]
[366727078,1750421244127,-490.0,0.00025465,4]
[366727079,1750421244150,-490.0,0.00025465,4]
[366727080,1750421244174,-490.0,0.00025465,4]
[366727081,1750421244197,-490.0,0.00025465,4]
[366727082,1750421244221,-490.0,0.00025465,4]
[366727083,1750421244244,-490.0,0.00025465,4]
[366727084,1750421244268,-737.63,0.00025465,4]
[366727085,1750421244292,-490.0,0.00025465,4]
[366727086,1750421244322,-269.21949342,0.00025465,4]
[366727087,1750421244361,-220.78050658,0.00025465,4]
[366727088,1750421244385,-490.0,0.00025465,4]
[366727089,1750421244410,-553.15,0.00025465,4]
[366727090,1750421244434,-490.0,0.00025465,4]
[366727091,1750421244458,-490.0,0.00025465,4]